bitfinex-derivatives/quotes_ETHF0:USTF0_20250314
["timestamp","ask_amount","ask_price","bid_price","bid_amount"]
[1741911067148,2.4101,1867.6,1867.5,1.3567]
[1741911067635,1.3388,1867.6,1867.5,1.3567]
[1741911068145,1.3388,1867.6,1867.5,5.63585]
[1741911068340,0.00805218,1867.7,1867.6,1.0713]
[1741911069340,1.35115218,1867.7,1867.6,1.0713]
[1741911069537,0.00805218,1867.7,1867.5,4.5645]
[1741911069846,0.00805218,1867.7,1867.6,1.0713]
[1741911070644,0.00805218,1867.7,1867.6,1.7289]
[1741911070839,0.6589,1868.1,1867.6,0.6576]
[1741911071046,0.705,1868.2,1867.7,3.86692515]
[1741911071251,1.3431,1868.1,1868.0,1.07107]
[1741911072248,1.3431,1868.1,1868.0,2.44897]
[1741911073149,0.00803062,1868.2,1868.1,1.07101]
[1741911073346,1.38463062,1868.2,1868.1,1.07101]
[1741911073542,0.00803062,1868.2,1868.0,2.09573062]
[1741911073851,1.38463062,1868.2,1868.1,1.07101]
[1741911074047,1.38463062,1868.2,1868.0,1.38593062]
[1741911074240,1.38463062,1868.2,1868.0,2.45698062]
[1741911074442,1.38463062,1868.2,1868.0,1.38593062]
[1741911074747,2.45560062,1868.2,1868.0,1.38593062]
[1741911074948,1.38463062,1868.2,1868.0,1.38593062]
[1741911075341,1.38463062,1868.2,1868.1,1.07101]
[1741911075748,1.38463062,1868.2,1868.0,1.38593062]
[1741911076051,2.45560062,1868.2,1868.0,2.45698062]
[1741911076441,1.38463062,1868.2,1868.0,1.38593062]
[1741911076744,2.45560062,1868.2,1868.0,2.45699062]
[1741911077045,1.38463062,1868.2,1868.0,2.45699062]
[1741911077245,1.38463062,1868.2,1868.1,1.07101]
[1741911077444,2.45558062,1868.2,1868.0,2.45696062]
[1741911077846,1.38463062,1868.2,1868.1,1.07101]
[1741911079351,1.38463062,1868.2,1868.0,1.38593062]
[1741911079541,1.07101,1868.1,1868.0,1.38593062]
[1741911079854,1.38463062,1868.2,1868.0,1.38593062]
[1741911080153,2.45561062,1868.2,1868.0,1.38593062]
[1741911080358,1.38463062,1868.2,1868.0,1.38593062]
[1741911080552,2.45561062,1868.2,1868.0,2.45698062]
[1741911081154,1.38463062,1868.2,1868.0,0.00803062]
[1741911081356,1.07101,1868.1,1868.0,0.00803062]
[1741911081653,1.07101,1868.1,1868.0,1.36133062]
[1741911081857,1.07101,1868.1,1868.0,2.02121169]
[1741911082256,1.38463062,1868.2,1868.0,2.02121169]
[1741911082760,1.07101,1868.1,1868.0,2.02121169]
[1741911083751,1.07101,1868.1,1868.0,0.66791169]
[1741911083948,1.0713,1867.6,1867.5,0.72]
[1741911084149,1.07125,1867.7,1867.5,1.79134]
[1741911084348,1.07122,1867.8,1867.5,0.72]
[1741911084647,1.3113,1867.7,1867.6,2.41679]
[1741911085048,3.51602062,1868.2,1867.9,1.07108]
[1741911085251,2.38231,1868.1,1868.0,1.3455]
[1741911085956,1.3113,1868.1,1868.0,2.41657]
[1741911086955,1.3113,1868.1,1868.0,1.3455]
[1741911087156,2.38231,1868.1,1868.0,1.3455]
[1741911087550,1.3113,1868.1,1868.0,1.3455]
[1741911088148,1.3113,1868.1,1867.7,3.9091]
[1741911088347,2.38236,1868.1,1867.8,2.45596]
[1741911088552,2.38236,1868.1,1867.9,1.3848]
[1741911088754,1.4335,1868.0,1867.9,1.3848]
[1741911088948,1.4335,1868.0,1867.9,2.45592]
[1741911089154,1.07900062,1868.2,1868.0,1.07106]
[1741911089350,1.07900062,1868.2,1868.1,1.3848]
[1741911090556,2.38780062,1868.2,1868.1,1.3848]
[1741911090858,1.31683062,1868.2,1868.1,2.45581]
[1741911091158,1.0711,1868.0,1867.8,1.07118]
[1741911091355,1.3088,1867.9,1867.8,1.3021]
[1741911091550,1.3088,1867.9,1867.8,2.37328]
[1741911091853,1.3088,1867.9,1867.8,1.3021]
[1741911092259,1.3088,1867.9,1867.8,2.37328]
[1741911092652,0.00803062,1868.2,1867.8,2.37325]
[1741911092855,1.3088,1868.1,1867.9,1.3021]
[1741911093052,1.07107,1868.0,1867.9,1.3021]
[1741911093559,1.3088,1868.1,1867.9,1.3021]
[1741911093861,4.5166,1868.1,1867.7,0.7013]
[1741911094156,1.328,1868.0,1867.7,2.1354]
[1741911094353,1.07116,1867.9,1867.8,1.4341]
[1741911094756,1.07118,1867.8,1867.7,0.7013]
[1741911094955,2.44846,1867.9,1867.7,2.1354]
[1741911095458,1.07116,1867.9,1867.8,1.4341]
[1741911095857,1.328,1868.0,1867.8,1.4341]
[1741911096660,1.07112,1867.9,1867.8,1.4341]
[1741911097255,1.328,1868.0,1867.6,3.2078]
[1741911097459,5.88562,1867.9,1867.5,0.00803062]
[1741911097658,1.0713,1867.6,1867.5,0.00803062]
[1741911098857,2.4336,1867.6,1867.5,0.00803062]
[1741911099253,1.7792,1867.6,1867.5,0.00803062]
[1741911099447,5.88562,1867.9,1867.5,0.00803062]
[1741911099448,6.54002,1867.9,1867.5,0.00803062]
[1741911099668,8.07685,1867.9,1867.6,1.07124]
[1741911099954,8.07685,1867.9,1867.7,1.4394]
[1741911100259,8.07685,1867.9,1867.7,2.51063]
[1741911100458,8.07685,1867.9,1867.8,1.4394]
[1741911101152,5.64085,1867.9,1867.8,1.4394]
[1741911101354,4.27895,1867.9,1867.8,1.4394]
[1741911101659,1.07124,1867.7,1867.6,0.687]
[1741911101856,1.07124,1867.7,1867.6,2.1264]
[1741911102263,1.07121,1867.8,1867.6,2.1264]
[1741911102566,1.07121,1867.8,1867.7,1.3491]
[1741911104157,1.07117,1867.9,1867.7,1.3491]
[1741911104357,1.07118,1867.8,1867.7,1.3491]
[1741911104958,1.07124,1867.7,1867.5,0.00803062]
[1741911105159,1.0713,1867.6,1867.5,1.35713062]
[1741911105952,1.0713,1867.6,1867.5,6.2e-07]
[1741911106354,3.5713,1867.6,1867.5,6.2e-07]
[1741911106965,1.0713,1867.6,1867.5,6.2e-07]
[1741911109058,3.5083,1867.6,1867.5,6.2e-07]
[1741911109258,6.0083,1867.6,1867.5,6.2e-07]
[1741911110666,3.5083,1867.6,1867.5,6.2e-07]
[1741911113665,6.7161,1867.6,1867.5,6.2e-07]
[1741911113866,8.0697,1867.6,1867.5,6.2e-07]
[1741911114461,5.6327,1867.6,1867.5,6.2e-07]
[1741911114668,5.956,1867.7,1867.5,6.2e-07]
[1741911114865,7.02726,1867.7,1867.5,3.79611062]
[1741911115054,5.956,1867.7,1867.6,1.3072]
[1741911115259,5.956,1867.7,1867.6,2.3785]
[1741911115768,5.956,1867.7,1867.6,1.3072]
[1741911116166,5.956,1867.7,1867.6,2.3785]
[1741911116764,5.956,1867.7,1867.6,1.3072]
[1741911117666,5.956,1867.7,1867.6,2.3785]
[1741911120078,5.956,1867.7,1867.6,1.3072]
[1741911120079,7.02724,1867.7,1867.6,1.3072]
[1741911120267,8.33214,1867.7,1867.6,1.3072]
[1741911120469,2.37614,1867.7,1867.6,1.3072]
[1741911128678,1.07124,1867.7,1867.6,1.3072]
[1741911129275,2.38944,1867.7,1867.6,1.3072]
[1741911129572,2.38944,1867.7,1867.5,6.2e-07]
[1741911129573,1.0713,1867.6,1867.5,6.2e-07]
[1741911129783,7.0056,1867.6,1867.5,6.2e-07]
[1741911130982,5.6064,1867.6,1867.5,6.2e-07]
[1741911131671,2.436,1867.7,1867.5,6.2e-07]
[1741911131881,1.0713,1867.6,1867.5,1.39620062]
[1741911132681,3.50727,1867.7,1867.5,1.39620062]
[1741911133086,2.436,1867.7,1867.5,2.46753062]
[1741911133381,1.07124,1867.7,1867.5,2.46753062]
[1741911133779,3.2078,1867.9,1867.6,1.07125]
[1741911133977,4.27896,1867.9,1867.6,1.07125]
[1741911134183,4.27896,1867.9,1867.6,1.0713]
[1741911134383,1.07119,1867.8,1867.5,5.67531062]
[1741911134576,2.49729,1867.8,1867.5,5.67531062]
[1741911134977,1.07124,1867.7,1867.5,4.60400062]
[1741911135189,1.4261,1867.8,1867.5,2.46754062]
[1741911135378,2.49732,1867.8,1867.5,2.46754062]
[1741911135572,1.4261,1867.8,1867.5,2.46754062]
[1741911135979,1.4261,1867.8,1867.5,1.39620062]
[1741911136282,1.0713,1867.6,1867.5,1.39620062]
[1741911137785,1.3937,1867.7,1867.5,1.39620062]
[1741911138280,1.0713,1867.6,1867.5,1.39620062]
[1741911139878,0.7027,1867.8,1867.5,1.39620062]
[1741911140083,2.0775,1867.8,1867.5,1.39620062]
[1741911140280,1.07129,1867.7,1867.5,1.39620062]
[1741911140481,0.6725,1868.1,1867.5,4.60400062]
[1741911140692,1.07118,1867.9,1867.6,1.07128]
[1741911140985,5.6438,1868.0,1867.5,4.60400062]
[1741911141184,1.0713,1867.6,1867.5,1.39620062]
[1741911141487,2.0326,1867.9,1867.5,1.39620062]
[1741911141690,1.07119,1867.8,1867.5,2.46753062]
[1741911142086,1.3748,1867.9,1867.5,1.39620062]
[1741911142285,1.07127,1867.7,1867.5,1.39620062]
[1741911142489,1.3508,1867.6,1867.5,1.39620062]
[1741911142990,2.4221,1867.6,1867.5,1.39620062]
[1741911143686,1.3508,1867.6,1867.5,1.39620062]
[1741911143983,4.279,1867.8,1867.5,2.46755062]
[1741911144189,4.27898,1867.8,1867.5,2.75710062]
[1741911144381,4.27898,1867.8,1867.6,1.3609]
[1741911144581,4.27902,1867.8,1867.6,1.3609]
[1741911144784,1.4138,1867.7,1867.6,1.3609]
[1741911145585,1.4138,1867.7,1867.6,2.4322]
[1741911145785,0.679,1868.0,1867.6,2.4322]
[1741911145986,2.48495,1867.9,1867.7,1.3154]
[1741911146187,1.4138,1867.9,1867.7,2.3866]
[1741911146378,2.48494,1867.9,1867.7,2.3866]
[1741911146688,2.48494,1867.9,1867.8,1.3154]
[1741911149384,1.4138,1867.9,1867.8,1.3154]
[1741911149586,2.48492,1867.9,1867.8,1.3154]
[1741911150087,1.4138,1867.9,1867.8,1.3154]
[1741911150276,2.48492,1867.9,1867.8,1.3154]
[1741911152093,1.4138,1867.9,1867.8,1.3154]
[1741911152293,2.48492,1867.9,1867.8,1.3154]
[1741911153387,1.0713,1867.6,1867.5,1.39620062]
[1741911154089,1.0713,1867.6,1867.5,2.81370062]
[1741911155880,1.0713,1867.6,1867.5,2.11090062]
[1741911156689,2.4487,1867.6,1867.5,2.11090062]
[1741911158090,2.435,1867.8,1867.5,6.39002062]
[1741911158394,2.435,1867.8,1867.6,2.0057]
[1741911158395,1.07124,1867.7,1867.6,2.0057]
[1741911158587,2.43634,1867.7,1867.6,2.0057]
[1741911158788,1.0712,1867.8,1867.6,3.077]
[1741911159085,1.0712,1867.8,1867.7,1.3437]
[1741911159692,1.3651,1867.9,1867.7,1.3437]
[1741911159896,1.07118,1867.8,1867.7,1.3437]
[1741911160196,2.43626,1867.9,1867.7,1.3437]
[1741911161295,1.3651,1867.9,1867.7,2.41493]
[1741911161690,1.3651,1867.9,1867.8,1.4166]
[1741911162291,2.43622,1867.9,1867.8,1.4166]
[1741911163295,3.8687,1868.1,1867.8,1.4166]
[1741911163495,1.3349,1868.1,1868.0,1.07107]
[1741911163897,2.41388062,1868.2,1868.0,1.07107]
[1741911164091,2.41388062,1868.2,1868.0,1.77307]
[1741911164293,2.41388062,1868.2,1868.1,1.3225]
[1741911164988,1.34293062,1868.2,1868.1,2.39351]
[1741911165189,2.41388062,1868.2,1868.1,1.3225]
[1741911167198,4.02035062,1868.2,1867.6,3.2078]
[1741911167398,1.07118,1867.8,1867.7,1.4315]
[1741911168299,1.0713,1867.6,1867.5,6.2e-07]
[1741911168801,1.0713,1867.6,1867.5,1.43150062]
[1741911171094,1.07127,1867.7,1867.5,1.43150062]
[1741911171298,1.3584,1867.8,1867.5,2.50283062]
[1741911171299,1.0712,1867.8,1867.5,2.50283062]
[1741911171603,1.3409,1867.7,1867.6,0.679]
[1741911171804,1.3409,1867.7,1867.6,1.9806]
[1741911172400,1.4117,1867.9,1867.7,1.07121]
[1741911172591,2.48282,1867.9,1867.8,1.4084]
[1741911172797,1.4117,1867.9,1867.8,1.4084]
[1741911172998,2.50471,1868.0,1867.8,1.4084]
[1741911173493,1.4336,1867.9,1867.8,1.4084]
[1741911174502,2.50472,1867.9,1867.8,1.4084]
[1741911175197,1.07121,1867.8,1867.6,4.5769]
[1741911175403,1.07121,1867.8,1867.6,3.8868]
[1741911175404,1.07124,1867.7,1867.6,3.8868]
[1741911175599,2.41864,1867.7,1867.6,4.5949]
[1741911176405,2.41864,1867.7,1867.6,1.3871]
[1741911177107,2.5008,1867.8,1867.6,1.3871]
[1741911178200,1.07123,1867.8,1867.6,1.3871]
[1741911178408,1.07124,1867.7,1867.6,1.3871]
[1741911181205,1.07124,1867.7,1867.5,6.2e-07]
[1741911181508,2.4544,1867.6,1867.5,6.2e-07]
[1741911181701,3.8238,1867.6,1867.5,6.2e-07]
[1741911184202,6.3238,1867.6,1867.5,6.2e-07]
[1741911184607,3.8238,1867.6,1867.5,6.2e-07]
[1741911186212,6.3238,1867.6,1867.5,6.2e-07]
[1741911186405,1.07158,1867.1,1867.0,1.4368]
[1741911187204,2.48748,1867.1,1867.0,1.4368]
[1741911193921,1.07158,1867.1,1867.0,1.4368]
[1741911194319,0.00803062,1867.2,1867.0,5.71622]
[1741911194510,0.00803062,1867.2,1867.1,1.07158]
[1741911194711,1.07955062,1867.2,1867.1,1.4013]
[1741911195318,0.00803062,1867.2,1867.1,1.4013]
[1741911195523,0.00803062,1867.2,1867.1,2.47288]
[1741911195724,0.00803062,1867.2,1867.1,1.4013]
[1741911196124,1.07955062,1867.2,1867.1,1.4013]
[1741911196717,0.00803062,1867.2,1867.1,1.4013]
[1741911196914,1.07955062,1867.2,1867.1,1.4013]
[1741911199036,1.07164,1867.0,1866.9,1.36663062]
[1741911200430,1.07164,1867.0,1866.9,2.77703062]
[1741911200638,1.4321,1867.1,1866.9,2.77703062]
[1741911200935,2.50368,1867.1,1867.0,1.4104]
[1741911201236,0.00803062,1867.2,1867.0,1.4104]
[1741911201447,0.00803062,1867.2,1867.1,1.07158]
[1741911201731,0.00803062,1867.2,1867.1,1.4104]
[1741911202733,1.42523062,1867.2,1867.1,2.48198]
[1741911202937,0.00803062,1867.2,1867.1,2.48198]
[1741911206238,5.6418,1867.7,1867.1,3.9104]
[1741911206542,1.07139,1867.5,1867.3,1.07143]
[1741911206742,1.07139,1867.5,1867.4,0.7184]
[1741911206939,1.07139,1867.5,1867.4,2.0451]
[1741911208142,2.38787062,1867.6,1867.4,2.0451]
[1741911208442,2.38787062,1867.6,1867.5,1.3794]
[1741911208642,1.07937062,1867.6,1867.5,1.3794]
[1741911208937,1.0715,1867.3,1867.0,11.26542]
[1741911209138,0.7207,1867.5,1867.1,0.6964]
[1741911209338,1.7921,1867.5,1867.2,1.0715]
[1741911209539,1.07143,1867.4,1867.1,1.3675]
[1741911209738,1.07145,1867.4,1867.1,2.43906]
[1741911209938,1.78015,1867.4,1867.1,2.43906]
[1741911210243,1.07147,1867.3,1867.1,2.43906]
[1741911210542,1.07147,1867.3,1867.2,1.3794]
[1741911210742,1.78015,1867.4,1867.2,1.3794]
[1741911211044,1.07145,1867.4,1867.2,2.45092]
[1741911211436,3.1547,1867.5,1867.3,1.4253]
[1741911211839,1.07141,1867.4,1867.3,1.4253]
[1741911213646,4.22609,1867.5,1867.3,1.4253]
[1741911213847,1.79209,1867.5,1867.3,1.4253]
[1741911214033,0.7207,1867.5,1867.3,2.49675]
[1741911214241,1.79207,1867.5,1867.3,2.49675]
[1741911214443,1.79207,1867.5,1867.4,1.4112]
[1741911215645,0.00803062,1867.6,1867.4,1.4112]
[1741911215845,0.00803062,1867.6,1867.5,1.3941]
[1741911216047,0.00803062,1867.6,1867.5,2.46545]
[1741911216446,0.00803062,1867.6,1867.5,3.87665]
[1741911216947,2.434,1868.0,1867.9,1.07112]
[1741911217342,2.434,1868.0,1867.7,3.2078]
[1741911217542,2.434,1868.0,1867.9,1.07112]
[1741911218043,3.50507,1868.0,1867.9,2.1149]
[1741911218237,4.16997,1868.0,1867.9,1.4421]
[1741911218644,3.0989,1868.0,1867.7,3.2078]
[1741911218852,1.07118,1867.8,1867.7,4.6499]
[1741911219741,0.6555,1867.9,1867.7,4.6499]
[1741911219946,1.72666,1867.9,1867.7,4.6499]
[1741911220153,1.72666,1867.9,1867.8,1.4421]
[1741911220353,2.434,1868.0,1867.8,1.4421]
[1741911220546,2.434,1868.0,1867.8,3.23155]
[1741911220752,3.50508,1868.0,1867.8,3.23155]
[1741911220941,2.434,1868.0,1867.9,1.3855]
[1741911221351,3.50507,1868.0,1867.9,1.3855]
[1741911222556,2.434,1868.0,1867.9,1.3855]
[1741911222742,0.00803062,1868.1,1867.9,1.3855]
[1741911222945,0.00803062,1868.1,1867.9,2.45658]
[1741911223146,0.00803062,1868.1,1868.0,0.7163]
[1741911223454,0.00803062,1868.1,1868.0,3.17287]
[1741911224054,0.00803062,1868.1,1868.0,2.1018]
[1741911224357,0.00803062,1868.1,1868.0,3.17287]
[1741911225961,5.6408,1868.7,1868.0,2.1018]
[1741911226156,1.4206,1868.3,1868.1,1.4224]
[1741911226456,2.49149,1868.3,1868.2,0.6679]
[1741911226665,2.46592,1868.5,1868.2,1.73885]
[1741911226854,1.4192,1868.4,1868.3,1.4274]
[1741911227859,2.49004,1868.4,1868.3,1.4274]
[1741911228157,1.4192,1868.4,1868.3,1.4274]
[1741911228558,0.00803062,1868.5,1868.3,5.70609]
[1741911228757,0.00803062,1868.5,1868.4,2.1345]
[1741911228957,1.42723062,1868.5,1868.4,2.1345]
[1741911229363,0.00803062,1868.5,1868.4,3.20534]
[1741911229661,1.07881062,1868.5,1868.4,2.1345]
[1741911229854,2.49871062,1868.5,1868.4,2.1345]
[1741911230053,1.42793062,1868.5,1868.4,2.1345]
[1741911230250,0.00803062,1868.5,1868.4,3.20534]
[1741911231258,1.07881062,1868.5,1868.4,2.1345]
[1741911232462,0.00803062,1868.5,1868.4,3.20534]
[1741911232659,1.07057,1868.9,1868.6,1.07069]
[1741911232866,3.2078,1869.0,1868.7,2.0173]
[1741911233058,1.4203,1868.9,1868.8,2.37358]
[1741911233862,1.4203,1868.9,1868.8,1.303]
[1741911234059,1.4203,1868.9,1868.8,2.37361]
[1741911234766,2.49085,1868.9,1868.8,1.303]
[1741911236064,2.49085,1868.9,1868.5,2.432]
[1741911236065,1.07068,1868.7,1868.5,4.27857]
[1741911236255,1.07072,1868.6,1868.5,3.2078]
[1741911236459,2.44842,1868.6,1868.5,4.5498]
[1741911236660,2.44842,1868.6,1868.5,1.342]
[1741911236965,1.0707,1868.7,1868.5,2.0328]
[1741911237165,1.3777,1868.6,1868.5,3.10358]
[1741911237366,1.3777,1868.6,1868.5,1.76158]
[1741911237572,1.3777,1868.6,1868.5,0.6908]
[1741911238064,1.3777,1868.6,1868.5,1.76158]
[1741911238566,2.44842,1868.6,1868.5,1.76158]
[1741911238770,1.3777,1868.6,1868.5,1.76158]
[1741911239266,1.3777,1868.6,1868.5,0.6908]
[1741911239468,2.44842,1868.6,1868.5,1.76158]
[1741911239669,1.3777,1868.6,1868.5,1.76158]
[1741911240171,2.44842,1868.6,1868.5,1.76158]
[1741911240372,1.07072,1868.6,1868.5,0.6908]
[1741911240567,1.3379,1868.8,1868.5,1.76153]
[1741911240769,1.07071,1868.7,1868.6,0.711]
[1741911242668,1.07071,1868.7,1868.6,1.78172]
[1741911242970,1.78997,1868.9,1868.7,1.07066]
[1741911243271,1.07061,1868.8,1868.7,1.07066]
[1741911243871,1.4007,1868.8,1868.7,1.07066]
[1741911244264,4.28366937,1869.0,1868.8,1.07058]
[1741911244572,1.4007,1868.9,1868.8,1.07058]
[1741911245071,1.07055,1868.9,1868.8,1.07061]
[1741911245374,1.07055,1868.9,1868.8,1.75211]
[1741911245567,1.3111,1868.9,1868.8,1.75211]
[1741911245768,0.00533937,1869.0,1868.8,0.6815]
[1741911246076,2.38695937,1869.0,1868.9,1.07055]
[1741911246273,2.38692937,1869.0,1868.9,1.07055]
[1741911246667,1.31643937,1869.0,1868.9,1.07055]
[1741911246866,1.31643937,1869.0,1868.9,4.27835]
[1741911247067,0.00533937,1869.0,1868.9,4.27835]
[1741911247869,1.34353937,1869.0,1868.9,4.27835]
[1741911248070,1.34353937,1869.0,1868.9,1.07055]
[1741911248273,1.07055,1868.9,1868.8,1.75209]
[1741911248481,1.07055,1868.9,1868.7,3.2078]
[1741911248775,2.40881,1868.8,1868.7,4.27846]
[1741911248979,1.3382,1868.8,1868.7,4.27846]
[1741911249471,1.07586937,1869.0,1868.9,1.07055]
[1741911249667,1.34353937,1869.0,1868.9,1.07055]
[1741911250274,2.41402937,1869.0,1868.9,1.07055]
[1741911250582,0.00533937,1869.0,1868.9,1.07055]
[1741911251682,1.42363937,1869.0,1868.9,1.07055]
[1741911252573,5.8835,1869.4,1868.9,1.07055]
[1741911252574,3.2078,1869.6,1868.9,15.37012]
[1741911252779,1.07035,1869.3,1869.1,3.2078]
[1741911253073,1.4183,1869.5,1869.1,3.2078]
[1741911253278,1.4183,1869.5,1869.4,1.07026]
[1741911254381,1.4183,1869.5,1869.4,2.37726]
[1741911256376,4.27797,1869.6,1869.4,2.37726]
[1741911256377,3.2078,1870.0,1869.4,1.307]
[1741911256571,1.357,1869.8,1869.7,1.07007]
[1741911256773,1.06983,1870.2,1870.0,1.0699]
[1741911256970,1.4037,1870.1,1870.0,1.0699]
[1741911258081,1.4037,1870.1,1869.9,3.2078]
[1741911258283,1.4037,1870.1,1870.0,1.06992]
[1741911258484,2.47356,1870.1,1869.9,4.27775]
[1741911258681,1.4037,1870.1,1870.0,1.06992]
[1741911258887,3.2078,1870.4,1869.9,3.2078]
[1741911259074,1.06985,1870.2,1870.0,1.0699]
[1741911259387,1.4037,1870.1,1869.9,3.2078]
[1741911259688,1.77224,1870.0,1869.8,2.42072]
[1741911259885,1.4037,1869.9,1869.8,2.42072]
[1741911260082,1.07009,1869.7,1869.6,3.2078]
[1741911260384,1.4037,1869.9,1869.7,1.07006]
[1741911260385,2.47369,1869.9,1869.7,1.07006]
[1741911260584,1.4037,1869.9,1869.8,1.07003]
[1741911261691,2.47369,1869.9,1869.7,1.77205]
[1741911261987,1.4037,1869.9,1869.8,1.07003]
[1741911262688,0.7023,1870.0,1869.9,1.06998]
[1741911262890,2.0443,1870.0,1869.9,1.06998]
[1741911263787,2.0443,1870.0,1869.7,0.702]
[1741911264092,1.3612,1869.9,1869.7,0.702]
[1741911264290,1.3612,1869.9,1869.8,1.07003]
[1741911264490,2.4312,1869.9,1869.7,1.77205]
[1741911264796,2.4312,1869.9,1869.8,1.07003]
[1741911265094,2.43121,1869.9,1869.7,1.77205]
[1741911265293,1.3612,1869.8,1869.7,1.77205]
[1741911266690,1.3612,1869.8,1869.7,0.702]
[1741911266986,1.3612,1869.8,1869.7,1.77209]
[1741911268095,2.43123,1869.8,1869.7,0.702]
[1741911268397,1.3612,1869.8,1869.6,3.2078]
[1741911268696,1.412,1869.7,1869.6,4.96485]
[1741911269595,1.06999,1869.9,1869.8,1.07003]
[1741911269795,1.06999,1869.9,1869.7,1.07005]
[1741911269996,1.4081,1869.8,1869.7,1.07005]
[1741911273898,1.4081,1869.8,1869.7,2.39485]
[1741911274299,0.7023,1870.0,1869.9,1.06998]
[1741911274486,2.1204,1870.0,1869.9,1.06998]
[1741911274692,3.19032,1870.0,1869.9,1.06998]
[1741911275091,2.1204,1870.0,1869.9,1.06998]
[1741911275997,3.19032,1870.0,1869.9,1.06998]
[1741911276697,2.1204,1870.0,1869.9,1.06998]
[1741911277198,2.1204,1870.0,1869.8,2.39479]
[1741911277199,3.19034,1870.0,1869.8,2.39479]
[1741911277497,1.4097,1869.9,1869.8,2.39479]
[1741911277698,1.4097,1869.9,1869.8,1.06999]
[1741911279098,3.9097,1869.9,1869.5,0.6998]
[1741911279398,3.2078,1869.6,1869.3,0.00803062]
[1741911279699,1.07026,1869.4,1869.3,0.00803062]
[1741911280102,4.27806,1869.4,1869.3,0.00803062]
[1741911280302,5.65816,1869.4,1869.3,0.00803062]
[1741911282591,1.07049,1869.0,1868.9,3.2078]
[1741911283211,3.7968,1869.3,1868.9,3.2078]
[1741911283499,1.07045,1869.1,1868.9,3.2078]
[1741911283699,1.3688,1869.0,1868.9,3.21583062]
[1741911284796,2.43929,1869.0,1868.9,3.21583062]
[1741911285000,2.43929,1869.0,1868.9,0.00803062]
[1741911285201,1.3688,1869.0,1868.9,0.00803062]
[1741911285504,2.43929,1869.0,1868.9,0.00803062]
[1741911287310,8.31967062,1869.3,1868.9,0.00803062]
[1741911287311,1.07042,1869.2,1868.9,0.00803062]
[1741911287604,0.00803062,1869.3,1869.0,3.2078]
[1741911287804,1.07044,1869.1,1869.0,3.2078]
[1741911288002,0.00803062,1869.3,1869.0,3.2078]
[1741911288212,0.00803062,1869.3,1869.2,1.07038]
[1741911288406,0.00803062,1869.3,1869.1,0.6509]
[1741911288604,0.00803062,1869.3,1869.2,1.75828]
[1741911288801,1.07835062,1869.3,1869.2,0.6879]
[1741911289308,0.00803062,1869.3,1869.2,4.96608]
[1741911289815,1.07835062,1869.3,1869.2,0.6879]
[1741911290004,1.07835062,1869.3,1869.2,1.75828]
[1741911290404,0.00803062,1869.3,1869.2,1.75828]
[1741911290802,0.00803062,1869.3,1869.0,3.2078]
[1741911291008,0.00803062,1869.3,1868.9,0.00803062]
[1741911291009,1.07049,1869.0,1868.9,0.00803062]
[1741911292099,2.37249,1869.0,1868.9,0.00803062]
[1741911292712,1.07061,1868.8,1868.7,6.986]
[1741911293304,2.37261,1868.8,1868.5,1.75814]
[1741911293705,1.3267,1868.7,1868.5,1.75814]
[1741911293905,1.3267,1868.7,1868.6,1.4266]
[1741911295401,2.39736,1868.7,1868.6,1.4266]
[1741911299612,1.3267,1868.7,1868.6,1.4266]
[1741911299813,6.3061,1868.9,1868.6,2.4973]
[1741911300012,2.47202,1868.8,1868.6,2.4973]
[1741911300213,2.47202,1868.8,1868.7,1.3602]
[1741911301409,1.4014,1868.8,1868.5,0.00803062]
[1741911301609,1.07103,1868.1,1867.9,1.07111]
[1741911301806,5.10497,1868.5,1867.9,3.12221]
[1741911302011,1.4014,1868.0,1867.9,2.0511]
[1741911302211,1.4014,1868.0,1867.9,1.76202]
[1741911302612,1.07098,1868.2,1867.9,0.6909]
[1741911302814,1.42203062,1868.1,1868.0,1.07107]
[1741911303507,1.42203062,1868.1,1867.9,0.6909]
[1741911303716,0.00803062,1868.1,1868.0,1.07107]
[1741911304018,1.0706,1868.9,1868.7,1.07064]
[1741911304220,3.2078,1869.0,1868.5,3.2078]
[1741911304418,1.3869,1869.1,1868.7,3.2078]
[1741911304619,2.48446,1869.1,1868.9,1.07054]
[1741911304819,2.48446,1869.1,1869.0,0.7001]
[1741911305219,1.07055,1868.9,1868.8,0.00803062]
[1741911305615,1.07055,1868.9,1868.2,2.67731]
[1741911305616,3.2078,1868.9,1868.1,5.6358]
[1741911305816,1.07081,1868.5,1868.3,0.6558]
[1741911306015,1.35,1868.4,1868.3,0.6558]
[1741911306215,1.07074,1868.6,1868.3,4.93449]
[1741911306522,1.35,1868.8,1868.3,1.72669]
[1741911306723,1.0707,1868.7,1868.4,1.07081]
[1741911306920,1.07066,1868.7,1868.4,1.07886062]
[1741911307122,1.35,1868.6,1868.4,1.07886062]
[1741911307821,0.6635,1868.7,1868.5,4.27854]
[1741911308027,0.6635,1868.7,1868.6,0.6558]
[1741911308517,3.08416,1868.7,1868.6,0.6558]
[1741911308720,3.08416,1868.7,1868.4,1.07885062]
[1741911308721,1.07078,1868.5,1868.4,0.00803062]
[1741911309319,1.07107,1868.0,1867.9,3.2078]
[1741911309720,3.2078,1868.2,1867.7,3.8832]
[1741911309943,1.3719,1867.9,1867.7,4.95439]
[1741911310315,2.44303,1867.9,1867.7,4.95439]
[1741911310622,0.00803062,1868.0,1867.8,1.07114]
[1741911310815,0.00803062,1868.0,1867.7,3.8832]
[1741911311015,0.00803062,1868.0,1867.9,1.07112]
[1741911311217,0.00803062,1868.0,1867.7,3.8832]
[1741911311522,0.00803062,1868.0,1867.8,1.07115]
[1741911311914,0.00803062,1868.0,1867.9,0.6909]
[1741911312121,0.00803062,1868.0,1867.9,4.96982]